bitfinex-derivatives/quotes_ETHF0:USTF0_20260204
["timestamp","ask_amount","ask_price","bid_price","bid_amount"]
[1770177141285,0.00441027,2281.3,2280.8,4.10803659]
[1770177141584,2.30893783,2281.3,2280.8,0.21951]
[1770177142182,2.30893783,2281.3,2280.8,2.67203643]
[1770177142478,0.00441027,2281.3,2280.8,2.67203643]
[1770177142683,2.30452756,2281.6,2281.0,3.88852659]
[1770177142879,2.30452756,2282.0,2281.1,2.45252643]
[1770177143083,2.30452756,2282.0,2281.2,1.43600016]
[1770177143278,2.30452756,2282.0,2281.2,3.88852659]
[1770177143783,2.30791101,2282.0,2281.2,3.88852659]
[1770177144182,2.30791101,2282.0,2281.2,2.45252643]
[1770177144377,2.30791101,2282.0,2281.2,3.88852659]
[1770177144581,2.30791101,2282.0,2281.3,2.45252643]
[1770177147388,1.43600016,2281.5,2281.1,0.21948]
[1770177147585,2.30452756,2281.6,2280.8,2.45252643]
[1770177150887,2.30452756,2281.6,2280.9,2.45252643]
[1770177152593,2.30452756,2281.6,2280.9,2.67202643]
[1770177158303,2.30452756,2281.6,2281.0,0.21949]
[1770177163709,2.30452756,2281.9,2281.4,2.45252643]
[1770177164207,2.30452756,2281.9,2281.3,0.21946]
[1770177165106,2.30452756,2281.9,2281.3,2.67198643]
[1770177165307,2.30452756,2281.9,2281.3,0.21946]
[1770177166804,7.54338384,2282.0,2281.5,2.67196643]
[1770177167110,0.00338345,2282.0,2281.6,2.45252643]
[1770177167808,2.30452756,2282.2,2281.6,2.45252643]
[1770177168811,2.30945911,2282.2,2281.6,2.45252643]
[1770177169611,2.30945911,2282.2,2281.6,2.67195643]
[1770177171109,2.45515544,2281.6,2281.0,0.21949]
[1770177171609,2.45515544,2281.4,2280.7,2.3593811]
[1770177172513,2.45515544,2281.4,2281.0,0.21949]
[1770177172714,2.45515544,2281.4,2280.7,2.3593811]
[1770177173513,2.45515544,2281.4,2281.0,0.21949]
[1770177181908,2.35236824,2281.6,2281.0,2.61798586]
[1770177189117,2.35236824,2281.6,2281.0,0.21949]
[1770177197921,5.23547283,2281.7,2281.0,2.39849586]
[1770177198127,2.35236824,2282.0,2281.5,2.61793586]
[1770177198527,2.35236824,2282.0,2281.5,0.21944]
[1770177203729,2.35236824,2282.0,2281.5,2.55969606]
[1770177205634,2.43333662,2282.2,2281.5,2.55969606]
[1770177208534,2.43333662,2282.2,2281.5,0.21944]
[1770177211834,2.43333662,2282.2,2281.5,2.55969606]
[1770177213032,2.43333662,2282.2,2281.5,0.21944]
[1770177220343,2.42840507,2282.0,2281.1,0.21948]
[1770177220739,2.42840507,2281.8,2281.1,0.21948]
[1770177221738,2.42840507,2281.8,2280.6,2.34025606]
[1770177221940,2.42840507,2281.8,2280.8,2.55976606]
[1770177228450,2.42840507,2281.8,2280.9,2.34025606]
[1770177228747,2.42840507,2281.8,2281.2,2.34025606]
[1770177228944,2.42840507,2281.8,2281.2,2.55972606]
[1770177229148,7.67698551,2282.0,2281.2,2.55972606]
[1770177229347,2.42840507,2282.0,2281.2,2.55972606]
[1770177229745,2.42840507,2282.0,2281.3,2.55971606]
[1770177230243,2.42840507,2282.0,2281.4,2.55970606]
[1770177230444,2.42840507,2282.0,2280.9,1.4367104]
[1770177230445,2.42840507,2282.0,2281.5,2.55969606]
[1770177230647,2.48668696,2282.2,2281.5,2.55969606]
[1770177231344,2.48668696,2282.2,2281.6,0.21943]
[1770177231548,2.48668696,2282.2,2281.6,2.6896748]
[1770177232650,0.00493155,2282.2,2281.8,2.6896648]
[1770177232848,2.48175541,2282.4,2281.8,2.69417998]
[1770177233650,2.48175541,2282.5,2281.8,2.69417998]
[1770177233850,2.48618203,2282.5,2281.8,2.69417998]
[1770177235150,0.00442662,2282.5,2281.9,2.6896448]
[1770177237249,2.39417085,2282.5,2281.9,0.2194]
[1770177237653,2.39417085,2282.5,2281.8,1e-08]
[1770177238455,2.39417085,2282.5,2281.8,2.43244814]
[1770177239754,2.39417085,2282.5,2281.8,1e-08]
[1770177242356,2.39417085,2282.5,2281.7,0.21942]
[1770177242357,2.38974423,2281.9,2281.2,0.21947]
[1770177243461,2.38974423,2281.9,2281.2,0.22505899]
[1770177244958,2.38974423,2281.9,2281.2,2.65750712]
[1770177245463,2.38974423,2282.2,2281.3,2.65190813]
[1770177246562,2.38974423,2282.2,2281.5,2.43244813]
[1770177246959,2.38974423,2282.2,2281.5,2.65188813]
[1770177247265,2.38974423,2282.4,2281.5,2.65188813]
[1770177247758,2.38974423,2282.4,2281.6,2.65187813]
[1770177248654,2.38974423,2282.4,2281.6,0.21943]
[1770177250262,2.38974423,2282.4,2281.6,2.65187813]
[1770177252362,2.39417085,2282.5,2282.0,2.65183813]
[1770177252562,0.00442662,2282.5,2282.0,2.65183813]
[1770177255965,2.38974423,2283.2,2282.5,2.43244813]
[1770177256368,2.38974423,2283.1,2282.5,2.43244813]
[1770177256562,2.38974423,2283.5,2282.5,2.43244813]
[1770177256766,2.38974423,2283.4,2282.5,2.43244813]
[1770177256965,2.39379177,2283.4,2282.5,2.43244813]
[1770177257166,6.77134423,2283.3,2282.5,2.43244813]
[1770177257360,2.38974423,2283.2,2282.5,2.43244813]
[1770177257865,6.77134423,2283.2,2282.5,2.43244813]
[1770177260071,2.38974423,2283.3,2282.6,3.86839936]
[1770177260272,6.77134423,2283.3,2282.6,3.86839936]
[1770177260473,4.3816,2283.2,2282.6,4.08773936]
[1770177260672,4.3816,2283.2,2282.7,2.43350534]
[1770177261168,4.3816,2283.1,2282.7,2.43350534]
[1770177261369,4.3816,2283.2,2282.7,2.43350534]
[1770177261566,2.38034936,2283.4,2282.8,4.08877657]
[1770177261772,2.38034936,2283.4,2282.8,4.09443638]
[1770177261972,6.76194936,2283.4,2282.8,4.09443638]
[1770177262775,4.38564754,2283.4,2282.9,2.43350534]
[1770177263074,6.76194936,2283.4,2282.9,2.43350534]
[1770177263274,0.00404754,2283.4,2283.0,1.43595123]
[1770177263476,3.69439026,2283.4,2283.1,2.43350534]
[1770177263774,2.37630182,2283.6,2283.0,0.63451631]
[1770177264473,2.38105817,2283.6,2283.0,0.63451631]
[1770177265067,0.00475635,2283.6,2283.2,1.43595123]
[1770177266169,0.00475635,2283.6,2283.2,3.86945657]
[1770177267877,0.00475635,2283.6,2283.2,4.08873657]
[1770177268080,2.37630182,2283.8,2283.4,1.43595123]
[1770177268276,2.37630182,2284.2,2283.4,4.08871657]
[1770177268473,2.37630182,2284.2,2283.7,0.21923]
[1770177268679,2.37630182,2284.2,2283.8,1.43595123]
[1770177268976,2.38122942,2284.2,2283.8,1.43595123]
[1770177269675,0.0049276,2284.2,2283.8,1.43595123]
[1770177269870,0.0049276,2284.2,2283.8,3.86945657]
[1770177270074,2.37630182,2284.6,2284.0,1.65515123]
[1770177270278,2.37630182,2284.6,2284.0,4.08865657]
[1770177270977,2.3808165,2284.6,2284.0,4.08865657]
[1770177271172,0.00451468,2284.6,2284.2,1.65513123]
[1770177271376,2.3808165,2284.6,2284.2,0.21918]
[1770177271881,10.288,2285.3,2284.3,0.21918]
[1770177272078,3.43595123,2285.5,2284.3,0.21918]
[1770177272477,3.43595123,2285.5,2284.4,1.65511123]
[1770177272677,1.43595123,2285.5,2284.4,4.08861657]
[1770177272880,1.44082147,2285.5,2284.4,0.22260006]
[1770177273176,1.43595123,2285.3,2284.4,0.22260006]
[1770177273581,0.00487024,2285.5,2284.1,2.65269534]
[1770177273582,1.43595123,2285.1,2284.1,2.65269534]
[1770177273881,2.37630182,2284.8,2284.1,0.21919]
[1770177274477,2.37630182,2284.8,2284.1,0.22303882]
[1770177275080,2.37630182,2284.6,2283.5,3.86945657]
[1770177276180,2.37630182,2284.6,2283.6,2.43350534]
[1770177276380,2.37630182,2284.6,2283.6,2.65274534]
[1770177276581,2.37630182,2284.6,2283.7,2.65273534]
[1770177279086,2.37630182,2284.6,2283.8,0.21922]
[1770177279287,2.37630182,2284.6,2283.9,2.65271534]
[1770177280685,1.416,2285.2,2283.9,2.65271534]
[1770177280888,2.37630182,2285.1,2283.9,2.65271534]
[1770177281689,2.37630182,2285.1,2284.0,2.65270534]
[1770177281886,2.37630182,2285.1,2284.3,2.43350534]
[1770177282590,2.37630182,2285.1,2283.6,2.65274534]
[1770177283090,2.37630182,2285.1,2283.7,0.21923]
[1770177283789,2.37630182,2285.1,2283.8,0.21922]
[1770177286586,2.37630182,2285.1,2283.5,0.00396646]
[1770177286789,2.37630182,2284.8,2283.5,0.00396646]
[1770177288492,2.37630182,2284.7,2283.5,0.00396646]
[1770177288688,2.37630182,2284.6,2283.5,0.00396646]
[1770177288989,2.37630182,2284.4,2283.5,0.00396646]
[1770177290294,2.37630182,2284.4,2282.8,2.43350534]
[1770177290792,7.57099181,2284.4,2282.8,2.43350534]
[1770177290995,2.51742518,2284.2,2282.8,2.43350534]
[1770177291186,2.51742518,2284.1,2283.0,2.31361377]
[1770177291392,2.51742518,2284.1,2283.2,2.53289377]
[1770177292194,2.51742518,2284.1,2283.4,2.53287377]
[1770177293698,2.51742518,2284.1,2283.4,0.21926]
[1770177294701,2.51742518,2284.1,2282.8,2.31887771]
[1770177294901,2.51742518,2283.9,2282.8,0.22458394]
[1770177295303,2.52159127,2283.9,2282.8,0.22458394]
[1770177296701,2.37938514,2283.8,2282.8,0.22458394]
[1770177299703,2.37938514,2283.7,2282.8,0.22458394]
[1770177300005,2.37938514,2283.5,2282.2,0.21937]
[1770177300298,2.37938514,2283.4,2282.2,0.21937]
[1770177300903,2.37938514,2283.4,2282.2,0.22387905]
[1770177302404,2.37938514,2283.4,2282.3,0.21936]
[1770177306611,2.37938514,2283.4,2282.3,2.52453312]
[1770177308210,2.37938514,2283.4,2282.7,2.52449312]
[1770177308406,2.37938514,2283.6,2282.9,2.52448312]
[1770177308804,2.37938514,2283.6,2282.9,0.21931]
[1770177310416,2.37938514,2283.6,2282.9,2.52448312]
[1770177313819,0.00416609,2283.9,2282.9,2.52448312]
[1770177313820,2.37938514,2283.8,2282.9,2.52448312]
[1770177314319,2.37938514,2283.8,2283.0,2.52447312]
[1770177314520,2.37938514,2283.8,2283.1,2.52446312]
[1770177315222,0.00416609,2283.9,2283.3,2.52444312]
[1770177315516,0.00416609,2283.9,2283.6,2.30517312]
[1770177315716,2.37938514,2284.4,2283.8,2.52439312]
[1770177315918,5.19468999,2285.1,2283.9,2.30517312]
[1770177316822,5.20000152,2285.1,2283.9,2.31016043]
[1770177317620,5.20000152,2285.1,2284.1,0.21919]
[1770177317823,2.37938514,2285.0,2284.1,0.21919]
[1770177318219,2.37938514,2285.0,2284.1,2.52436312]
[1770177320328,2.37938514,2285.0,2284.2,2.52435312]
[1770177323726,2.43492042,2285.1,2284.4,0.21917]
[1770177328734,2.43492042,2285.1,2284.0,2.51480002]
[1770177329635,2.43492042,2285.1,2284.4,0.21917]
[1770177335542,2.43492042,2285.1,2284.4,2.73397002]
[1770177337242,2.43492042,2285.1,2284.5,2.73396002]
[1770177337542,0.00531153,2285.1,2284.7,2.51480002]
[1770177337935,0.00531153,2285.1,2284.7,2.73394002]
[1770177338833,1.53e-06,2285.1,2284.7,2.73394002]
[1770177339140,2.42961042,2285.1,2284.7,0.21914]
[1770177345841,2.42961042,2285.1,2284.3,2.73397002]
[1770177346840,2.42961042,2285.1,2284.4,0.21917]
[1770177347643,2.42961042,2285.1,2284.4,2.73397002]
[1770177348442,2.42961042,2285.1,2284.5,0.21915]
[1770177350250,2.42961042,2285.1,2284.5,2.73395002]
[1770177350746,2.42961042,2285.1,2284.5,0.21915]
[1770177351244,2.42961042,2285.1,2284.5,2.70784986]
[1770177354053,1.53e-06,2285.1,2284.6,2.70784986]
[1770177357353,1.53e-06,2285.1,2284.2,2.51857135]
[1770177357550,1.53e-06,2285.1,2284.2,0.21918]
[1770177357745,2.29257837,2285.1,2284.2,0.21918]
[1770177358055,2.29257684,2284.9,2283.9,0.00498731]
[1770177358250,2.29257684,2284.8,2283.9,0.00498731]
[1770177358553,2.29257684,2284.7,2283.7,0.21923]
[1770177358754,2.29257684,2284.6,2283.7,0.21923]
[1770177358947,2.29257684,2284.4,2283.2,2.29939135]
[1770177359146,2.29257684,2284.4,2283.1,0.21929]
[1770177359147,7.48726683,2284.2,2283.1,0.21929]
[1770177359347,2.29257684,2284.1,2283.1,0.21929]
[1770177359552,2.29257684,2284.1,2283.1,0.22469292]
[1770177359750,2.29257684,2284.1,2283.1,2.52408427]
[1770177360457,2.29257684,2284.1,2283.2,2.51867135]
[1770177362053,2.29257684,2284.1,2283.2,0.21928]
[1770177365457,2.29257684,2284.1,2283.2,2.51867135]
[1770177365658,2.29257684,2284.1,2283.5,0.21925]
[1770177365956,2.29257684,2284.1,2283.5,2.51864135]
[1770177367056,2.29257684,2284.7,2283.7,2.51862135]
[1770177368859,2.29257684,2284.7,2283.7,0.21923]
[1770177369459,2.29257684,2284.7,2283.3,2.29939135]
[1770177369860,7.48726683,2284.7,2283.3,2.29939135]
[1770177370162,2.29257684,2284.6,2283.3,2.51866135]
[1770177372061,2.29257684,2284.6,2283.4,2.29939135]
[1770177372959,2.29257684,2284.6,2283.6,2.51863135]
[1770177373360,2.29257684,2284.8,2284.0,2.29939135]
[1770177373557,2.29257684,2284.8,2284.1,2.51858135]
[1770177374064,1.53e-06,2285.1,2284.2,2.51857135]
[1770177374758,4.57143152,2285.8,2285.2,1.23037866]
[1770177374958,2.29257684,2286.1,2285.2,0.21908]
[1770177375463,2.29257684,2286.1,2284.7,0.21913]
[1770177375760,2.29757592,2286.1,2284.7,0.22448022]
[1770177376354,0.903,2286.0,2284.7,0.22448022]
[1770177376560,2.29257684,2285.9,2284.7,0.22448022]
[1770177380464,2.29257684,2285.9,2284.7,2.52387157]
[1770177382565,2.29257684,2285.9,2284.7,0.22448022]
[1770177385566,2.29257684,2285.9,2284.7,2.54591536]
[1770177389268,2.29257684,2285.9,2284.7,0.22448022]
[1770177389965,2.45299851,2285.7,2284.7,0.22448022]
[1770177390967,2.45299851,2285.7,2284.7,2.54591536]
[1770177391166,2.45299851,2285.7,2284.7,0.22448022]
[1770177398372,2.45299851,2285.3,2284.3,2.32143514]
[1770177398864,2.45299851,2285.1,2284.1,2.54062514]
[1770177399266,2.45299851,2285.1,2284.1,2.54594461]
[1770177401976,1.43256501,2285.0,2284.1,2.54594461]
[1770177402279,2.45299851,2284.9,2284.1,2.54594461]
[1770177404672,2.45299851,2284.9,2284.1,0.22450947]
[1770177406378,2.45299851,2284.8,2283.5,2.54067514]
[1770177406582,0.21917,2284.4,2283.3,4.1601729]
[1770177406783,2.45299851,2284.2,2282.9,2.54074514]
[1770177406980,2.45299851,2284.2,2282.4,0.21935]
[1770177407181,2.45299851,2284.2,2282.5,2.32143514]
[1770177407389,2.45845351,2284.2,2282.5,2.32458089]
[1770177407582,2.45299851,2283.9,2282.7,2.32143514]
[1770177408589,2.45299851,2283.9,2282.7,2.54076514]
[1770177414392,2.45299851,2283.9,2282.7,0.21933]
[1770177414788,2.45299851,2283.9,2282.7,2.71600697]
[1770177423599,6.83599851,2283.9,2282.7,2.71600697]
[1770177423896,2.35517075,2283.8,2282.7,2.71600697]
[1770177426403,2.35517075,2283.8,2282.9,2.49401566]
[1770177433406,2.35517075,2283.7,2282.9,2.49401566]
[1770177433797,2.35517075,2283.7,2282.8,1.43436366]
[1770177434197,5.58949309,2283.8,2282.9,2.49401566]
[1770177434399,5.58949309,2283.8,2282.8,1.43436366]
[1770177434400,2.52004737,2285.3,2283.7,4.30057694]
[1770177434703,2.52004737,2285.2,2284.3,0.21917]
[1770177434902,2.52004737,2285.2,2284.6,3.86332669]
[1770177435108,2.52004737,2285.0,2284.7,4.06996431]
[1770177435308,0.00396548,2285.0,2284.8,4.06996431]
[1770177435507,0.00396548,2285.0,2284.7,0.00505332]
[1770177435508,8.3933501,2285.0,2284.7,0.00505332]
[1770177435705,4.3792,2284.9,2284.4,3.86332669]
[1770177435907,4.0141501,2285.0,2284.5,5.24236098]
[1770177436105,4.0141501,2285.0,2284.3,2.71318566]
[1770177436308,4.0141501,2285.0,2284.4,7.73534473]
[1770177436505,4.0141501,2285.0,2284.5,5.23929319]
[1770177436708,4.0141501,2285.0,2284.5,0.00443526]
[1770177437010,4.0141501,2285.0,2284.5,5.24194913]
[1770177437211,8.3933501,2285.0,2284.5,5.24194913]
[1770177437510,8.3933501,2285.0,2284.5,0.00443526]
[1770177438114,10.74852085,2285.0,2284.5,0.00443526]
[1770177438512,2.35517075,2284.9,2284.5,0.00443526]
[1770177440607,4.0141501,2285.0,2284.3,0.21917]
[1770177440608,6.4772114,2284.8,2284.3,0.21917]
[1770177440812,2.46702678,2284.7,2284.1,5.2222034]
[1770177441013,2.46702678,2284.7,2284.0,2.42774684]
[1770177441417,4.01018462,2284.6,2284.0,2.42774684]
[1770177441608,4.01018462,2284.6,2284.0,7.64073873]
[1770177441909,2.46702678,2284.5,2284.0,0.00543564]
[1770177442112,2.46702678,2284.5,2283.7,4.08255669]
[1770177442113,2.46702678,2284.4,2283.7,0.21923]
[1770177442316,4.01018462,2284.4,2283.7,2.64697684]
[1770177442515,4.01018462,2284.4,2283.8,2.42774684]
[1770177443018,4.01018462,2284.4,2283.8,2.43108304]
[1770177443316,6.4772114,2284.4,2283.8,2.43108304]
[1770177449211,10.8564114,2284.4,2283.8,2.43108304]
[1770177450419,10.8564114,2284.4,2283.8,2.65030304]
[1770177452522,8.38938462,2284.4,2283.8,2.65030304]
[1770177452722,4.01018462,2284.4,2284.0,2.42774684]
[1770177452922,4.3792,2284.3,2284.0,2.42774684]
[1770177453121,4.3792,2284.3,2283.9,0.21921]
[1770177453122,4.3792,2284.3,2283.9,2.64695684]
[1770177453322,4.01018462,2284.4,2283.9,2.64695684]
[1770177453624,10.8564114,2284.4,2283.9,2.64695684]
[1770177454617,6.4772114,2284.4,2283.9,2.64695684]
[1770177454820,4.3792,2284.3,2283.9,2.64695684]
[1770177455024,4.3792,2284.3,2283.9,0.21921]
[1770177455224,2.46702678,2284.6,2283.9,2.64695684]
[1770177455622,2.46702678,2284.5,2283.9,2.64695684]
[1770177455823,2.46702678,2284.4,2283.9,0.21921]
[1770177456025,2.46702678,2284.1,2283.9,0.21921]
[1770177456523,3.91496,2284.1,2283.9,0.21921]
[1770177456721,2.89692,2284.0,2283.9,0.21921]
[1770177456922,1.83045669,2284.0,2283.9,0.21921]
[1770177457119,2.46702678,2284.3,2283.9,0.21921]
[1770177457325,4.01018462,2284.2,2283.9,0.21921]
[1770177458230,6.4772114,2284.2,2283.9,0.21921]
[1770177458428,0.00396548,2285.0,2284.2,0.21918]
[1770177458626,0.00396548,2285.0,2284.5,0.21915]
[1770177458833,0.00396548,2285.0,2284.5,2.64689684]
[1770177459428,2.47099226,2285.0,2284.5,2.64689684]
[1770177460230,0.00396548,2285.0,2284.6,0.21914]
[1770177460431,2.46702678,2285.2,2284.6,0.21914]
[1770177461434,2.4706778,2285.2,2284.6,0.21914]
[1770177463437,2.4706778,2285.2,2284.6,2.64688684]
[1770177463638,0.00365102,2285.2,2284.6,2.64688684]
[1770177463942,12.196,2285.9,2284.7,7.67544556]
[1770177464143,1.908,2285.9,2284.7,2.64688684]
[1770177464840,1.91309618,2285.9,2284.7,2.64688684]
[1770177465638,5.502,2285.8,2284.9,2.42774684]
[1770177466040,2.46702678,2285.7,2284.8,0.21913]
[1770177472648,1.401,2285.6,2284.8,0.21913]
[1770177472841,2.37343935,2285.5,2284.8,0.21913]
[1770177476850,3.61643935,2285.5,2284.8,0.21913]
[1770177477054,2.44480616,2285.4,2284.8,0.21913]
[1770177481155,2.44480616,2285.4,2284.5,2.60493791]
[1770177481452,2.44480616,2285.4,2284.4,2.60493791]
[1770177481656,2.44480616,2285.4,2284.5,5.04915976]
[1770177482455,2.44480616,2285.4,2284.4,2.60493791]
[1770177482855,2.44480616,2285.4,2284.5,5.02954966]
[1770177483055,2.44480616,2285.4,2284.4,2.60493791]
[1770177483256,2.44480616,2285.4,2284.5,5.03011022]
[1770177483457,2.44480616,2285.4,2284.4,2.60493791]
[1770177483752,2.44480616,2285.4,2284.5,5.03100916]
[1770177483955,2.44480616,2285.4,2284.4,2.60493791]
[1770177484157,2.44480616,2285.4,2284.5,5.02940063]
[1770177484357,2.44480616,2285.4,2284.4,2.60493791]
[1770177484558,2.44480616,2285.4,2284.5,5.03058555]
[1770177484758,2.44480616,2285.4,2284.4,2.60493791]
[1770177484959,2.44480616,2285.2,2284.5,9.90671095]
[1770177485159,2.44480616,2285.2,2284.5,4.87669274]
[1770177486361,2.44480616,2285.1,2284.5,4.87669274]
[1770177486861,2.44480616,2285.1,2284.6,5.03210881]
[1770177487161,2.44480616,2285.1,2284.5,4.87669274]
[1770177487355,2.44480616,2285.1,2284.6,5.03509571]
[1770177487555,2.44480616,2285.1,2284.5,4.87669274]
[1770177487757,2.44480616,2285.1,2284.6,5.03499919]
[1770177487959,2.44480616,2285.1,2284.5,4.87669274]
[1770177488154,2.44480616,2285.1,2284.6,7.30670924]
[1770177488353,2.44480616,2285.1,2284.6,4.87669274]
[1770177489257,0.856,2285.2,2284.7,2.27175483]
[1770177489463,5.418,2285.3,2284.7,2.27175483]
[1770177490461,2.44480616,2285.2,2284.7,2.27175483]
[1770177491262,2.44480616,2285.2,2284.6,2.60493791]
[1770177491456,2.44480616,2285.2,2284.7,5.02801695]
[1770177491661,2.44480616,2285.2,2284.6,2.60493791]
[1770177491960,2.44480616,2285.2,2284.7,5.02803061]
[1770177492163,2.44480616,2285.2,2284.6,2.60493791]
[1770177492362,2.44480616,2285.2,2284.7,5.02625811]
[1770177492561,2.44480616,2285.2,2284.6,2.60493791]
[1770177498560,2.44480616,2285.2,2284.4,2.27175483]
[1770177498561,2.44480616,2285.2,2284.4,2.60493791]
[1770177498766,2.44480616,2285.2,2284.3,4.03719954]
[1770177498965,2.44480616,2285.2,2284.4,4.88482235]
[1770177499165,2.44480616,2285.2,2284.3,6.30895437]
[1770177500166,2.44480616,2285.2,2284.3,3.70401646]
[1770177500965,2.44480616,2285.2,2284.4,2.34828155]
[1770177501261,2.31986811,2285.1,2284.5,3.78054318]
[1770177504171,2.31986811,2285.1,2284.3,3.78054318]
[1770177504372,2.31986811,2285.1,2284.3,1.43226163]
[1770177504574,2.31986811,2284.9,2283.9,6.38548109]
[1770177504871,2.31986811,2284.5,2283.6,2.60493791]
[1770177505070,2.31986811,2284.5,2283.6,7.36917019]
[1770177505270,2.31986811,2284.5,2283.5,3.78054318]
[1770177505673,2.31986811,2284.5,2283.7,1.43226163]
[1770177506068,2.31986811,2284.5,2283.7,1.43784266]
[1770177509975,2.31986811,2284.3,2283.7,1.43784266]
[1770177510175,2.32475724,2284.3,2283.7,1.43784266]
[1770177513679,2.32475724,2284.3,2283.7,3.78612421]
[1770177515481,0.00488913,2284.3,2284.0,2.34828155]
[1770177517882,0.00488913,2284.3,2283.9,1.43226163]
[1770177518181,0.00488913,2284.3,2283.9,3.78054318]
[1770177518578,0.00488913,2284.3,2284.0,2.34828155]
[1770177523783,11.09130452,2285.8,2284.3,2.34828155]
[1770177523784,6.70086811,2284.8,2284.3,2.34828155]
[1770177523983,8.22586811,2284.8,2284.3,2.34828155]
[1770177524481,2.31986811,2284.8,2284.3,2.34828155]
[1770177524682,4.21086811,2284.8,2284.3,2.34828155]
[1770177524980,4.21541123,2284.8,2284.3,2.34828155]
[1770177525689,2.31986811,2284.7,2284.3,2.34828155]
[1770177525887,2.31986811,2284.7,2284.2,3.78054318]
[1770177528391,2.32441123,2284.8,2284.3,2.34828155]
[1770177528588,6.27754312,2284.8,2284.3,2.34828155]
[1770177528895,8.59741123,2284.8,2284.3,2.34828155]
[1770177530794,6.27754312,2284.8,2284.3,2.34828155]
[1770177531094,2.2911871,2284.7,2284.0,3.93366981]
[1770177531295,2.2911871,2284.7,2283.8,3.93366981]
[1770177532195,2.2911871,2284.7,2283.9,2.50140818]
[1770177537496,2.2911871,2284.7,2283.7,2.47298104]
[1770177538096,2.3046535,2284.5,2283.7,2.47298104]
[1770177541796,2.3046535,2284.1,2283.7,0.00558103]
[1770177542001,2.3046535,2283.9,2283.3,2.46740001]
[1770177542195,2.3046535,2283.8,2283.1,2.46740001]
[1770177542896,2.3046535,2283.8,2283.1,2.47233604]
[1770177544995,2.3046535,2283.7,2283.1,2.47233604]
[1770177545195,2.3046535,2283.7,2283.1,0.00493603]
[1770177545501,2.3046535,2283.7,2282.9,2.46740001]
[1770177545696,2.3046535,2283.7,2282.7,3.89966164]
[1770177546198,2.3046535,2283.7,2282.8,2.46740001]
[1770177546699,2.3046535,2283.5,2282.8,2.46740001]
[1770177547502,7.9546535,2283.7,2283.2,2.46740001]
[1770177548904,7.9546535,2283.7,2283.1,2.46740001]
[1770177548905,2.3046535,2283.6,2283.1,2.46740001]
[1770177549702,5.65,2283.7,2283.2,2.46740001]
[1770177550002,2.3046535,2283.6,2283.2,2.46740001]
[1770177550603,7.9546535,2283.7,2283.2,2.46740001]
[1770177551602,2.3046535,2283.6,2283.2,2.46740001]
[1770177556204,3.5876535,2283.8,2283.2,2.46740001]
[1770177556705,3.4726535,2283.8,2283.2,2.46740001]
[1770177557610,2.3046535,2283.7,2283.2,2.46740001]
[1770177558807,2.3046535,2284.3,2283.2,2.46740001]
[1770177559013,4.1916535,2284.2,2283.2,2.46740001]
[1770177559309,2.3046535,2284.1,2282.8,2.46740001]
[1770177560406,2.3046535,2283.9,2282.8,2.46740001]
[1770177566009,2.42361938,2283.7,2282.8,2.46740001]
[1770177569510,2.42361938,2284.1,2283.2,2.3634357]
[1770177571810,4.383,2284.2,2283.2,2.3634357]
[1770177573515,6.80661938,2284.2,2283.2,2.3634357]
[1770177573813,2.42361938,2284.1,2283.2,2.3634357]
[1770177580516,2.42361938,2284.1,2283.1,2.3634357]
[1770177582424,1.872,2284.0,2283.1,2.3634357]
[1770177582923,2.42361938,2283.9,2283.1,2.3634357]
[1770177597450,2.42361938,2283.9,2283.1,6.91216333]
[1770177597646,2.42361938,2283.9,2283.2,2.32640014]
[1770177599555,3.72824937,2284.2,2283.3,2.32640014]
[1770177600555,2.38424937,2284.2,2283.3,2.32640014]
[1770177601859,2.38424937,2284.2,2283.4,2.32640014]
[1770177602357,2.38424937,2284.4,2283.5,2.32640014]
[1770177602751,2.38424937,2284.4,2283.5,4.54464277]
[1770177602954,4.24924937,2284.6,2283.7,2.32640014]
[1770177603155,2.38424937,2284.6,2283.7,2.32640014]
[1770177603554,2.38424937,2284.6,2283.5,2.32640014]
[1770177603749,2.38424937,2284.1,2283.2,2.60493791]
[1770177603950,2.38424937,2284.1,2283.0,2.32640014]
[1770177606957,2.38424937,2284.1,2282.7,3.76456343]
[1770177607162,2.38424937,2284.1,2282.8,2.32640014]
[1770177608062,2.38424937,2283.9,2282.8,2.32640014]
[1770177608567,2.38424937,2283.8,2282.7,0.00393191]
[1770177609361,2.60346937,2283.8,2282.7,0.00393191]
[1770177612959,2.38424937,2283.6,2282.7,0.00393191]
[1770177613156,2.38424937,2283.4,2282.7,2.33033205]
[1770177613758,3.46124937,2283.4,2282.7,2.33033205]
[1770177614463,2.38424937,2283.3,2282.7,2.33033205]
[1770177614663,2.38424937,2283.3,2282.7,0.00393191]
[1770177615164,2.38424937,2283.3,2282.5,2.32640014]
[1770177615465,2.38424937,2283.3,2282.3,2.32640014]
[1770177616163,2.38424937,2283.3,2282.3,2.3304341]
[1770177616363,2.38424937,2283.3,2282.3,0.00403396]
[1770177617366,2.38424937,2283.3,2282.3,2.3304341]
[1770177618569,2.38424937,2283.2,2282.3,2.3304341]
[1770177618770,1.43524118,2283.1,2282.3,2.3304341]
[1770177618970,2.38424937,2283.0,2282.3,2.3304341]
[1770177619271,1.43524118,2282.9,2282.0,2.32640014]
[1770177619465,2.38424937,2282.8,2282.0,2.32640014]
[1770177620164,2.38424937,2282.8,2282.0,2.33064108]
[1770177620762,2.50871879,2282.6,2281.8,2.28136884]
[1770177621070,2.50871879,2282.4,2281.8,2.28136884]
[1770177621568,2.50871879,2282.4,2281.6,2.28136884]
[1770177621770,2.50871879,2282.2,2281.6,2.28417762]
[1770177622573,2.50871879,2282.2,2281.2,2.28136884]
[1770177623172,2.50871879,2282.0,2281.2,2.28136884]
[1770177624067,2.50871879,2281.6,2280.8,2.28136884]
[1770177624369,2.51328891,2281.6,2280.8,2.28136884]
[1770177626576,2.51328891,2281.6,2280.8,3.71661002]
[1770177626873,0.00457012,2281.6,2281.3,2.28136884]
[1770177627570,0.00457012,2281.6,2281.0,3.71661002]
[1770177627772,0.00457012,2281.6,2281.0,2.28136884]
[1770177627773,2.51328891,2281.6,2281.0,2.28136884]
[1770177628269,2.51328891,2281.6,2280.8,3.71661002]
[1770177629578,0.00457012,2281.6,2280.9,2.28136884]
[1770177630869,2.51328891,2281.6,2280.9,2.28136884]
[1770177632076,2.50871879,2281.4,2280.5,2.28136884]
[1770177632476,2.50871879,2281.4,2279.8,2.28136884]
[1770177633379,2.72817879,2281.4,2279.8,2.28136884]
[1770177634978,2.72819879,2281.1,2279.8,2.28136884]
[1770177635180,2.50871879,2280.9,2279.8,2.28136884]
[1770177635981,0.857,2280.8,2279.8,2.28136884]
[1770177636180,2.50871879,2281.5,2279.8,2.28136884]
[1770177636380,2.50871879,2281.3,2279.8,2.28136884]
[1770177636779,2.50871879,2281.2,2279.8,2.28136884]
[1770177640783,2.50871879,2281.0,2279.4,2.28136884]
[1770177641283,2.50871879,2280.8,2279.4,2.28136884]
[1770177641785,2.72822879,2280.8,2279.4,2.28136884]
[1770177644984,2.50871879,2280.5,2279.4,2.28136884]